[Event "Titled Tuesday Blitz September 13 Late 2022"]
[White "Yoo, Christopher Woojin"]
[Black "Ibarra Jerez, Jose Carlos"]
[WhiteFideId "30909694"]
[BlackFideId "2226332"]
[WhiteElo "2105"]
[BlackElo "2627"]
[Result "1/2-1/2"]
[Round "08"]
[TimeControl "180+1"]
[Date "2022.09.13"]
[WhiteClock "0:00:01"]
[BlackClock "0:00:04"]

1. Nf3 {[%clk 0:02:58]}  d6 {[%clk 0:02:58]} 2. d4 {[%clk 0:02:58]}  Nf6 {[%clk 0:02:58]} 3. c4 {[%clk 0:02:50]}  g6 {[%clk 0:02:58]} 4. g3 {[%clk 0:02:50]}  Bf5 {[%clk 0:02:58]} 5. Bg2 {[%clk 0:02:50]}  Bg7 {[%clk 0:02:58]} 6. O-O {[%clk 0:02:51]}  O-O {[%clk 0:02:58]} 7. Qb3 {[%clk 0:02:46]}  Qc8 {[%clk 0:02:54]} 8. Nc3 {[%clk 0:02:46]}  Nc6 {[%clk 0:02:53]} 9. d5 {[%clk 0:02:45]}  Na5 {[%clk 0:02:53]} 10. Qa4 {[%clk 0:02:45]}  b6 {[%clk 0:02:52]} 11. c5 {[%clk 0:02:45]}  dxc5 {[%clk 0:02:41]} 12. Qh4 {[%clk 0:02:46]}  c6 {[%clk 0:02:27]} 13. e4 {[%clk 0:02:41]}  Bg4 {[%clk 0:02:10]} 14. Ne5 {[%clk 0:02:02]}  cxd5 {[%clk 0:02:10]} 15. Nxd5 {[%clk 0:01:40]}  Nxd5 {[%clk 0:01:58]} 16. Nxg4 {[%clk 0:01:39]}  Nb4 {[%clk 0:01:48]} 17. e5 {[%clk 0:01:38]}  Nac6 {[%clk 0:01:38]} 18. Bg5 {[%clk 0:00:49]}  Nc2 {[%clk 0:01:29]} 19. Rad1 {[%clk 0:00:42]}  N2d4 {[%clk 0:01:29]} 20. Rfe1 {[%clk 0:00:24]}  h5 {[%clk 0:01:25]} 21. Ne3 {[%clk 0:00:24]}  Nxe5 {[%clk 0:01:24]} 22. Qe4 {[%clk 0:00:20]}  Qe6 {[%clk 0:00:56]} 23. Nd5 {[%clk 0:00:17]}  Kh7 {[%clk 0:00:41]} 24. Nc7 {[%clk 0:00:12]}  Qg4 {[%clk 0:00:10]} 25. Qxg4 {[%clk 0:00:12]}  hxg4 {[%clk 0:00:11]} 26. Bxa8 {[%clk 0:00:13]}  Nef3+ {[%clk 0:00:10]} 27. Kg2 {[%clk 0:00:12]}  Nxg5 {[%clk 0:00:08]} 28. Rxe7 {[%clk 0:00:11]}  Bf6 {[%clk 0:00:08]} 29. Rd7 {[%clk 0:00:11]}  Kg7 {[%clk 0:00:08]} 30. Bd5 {[%clk 0:00:10]}  Rh8 {[%clk 0:00:07]} 31. Rh1 {[%clk 0:00:03]}  Ndf3 {[%clk 0:00:07]} 32. Ne6+ {[%clk 0:00:02]}  Nxe6 {[%clk 0:00:07]} 33. Bxe6 {[%clk 0:00:03]}  Ne5 {[%clk 0:00:07]} 34. Rxa7 {[%clk 0:00:03]}  Rd8 {[%clk 0:00:07]} 35. Bb3 {[%clk 0:00:03]}  Rd2 {[%clk 0:00:07]} 36. Rd1 {[%clk 0:00:03]}  Rxb2 {[%clk 0:00:05]} 37. Bxf7 {[%clk 0:00:03]}  Kh6 {[%clk 0:00:04]} 38. Be6 {[%clk 0:00:04]}  c4 {[%clk 0:00:04]} 39. Rc7 {[%clk 0:00:03]}  b5 {[%clk 0:00:03]} 40. a4 {[%clk 0:00:02]}  Nd3 {[%clk 0:00:03]} 41. Rf1 {[%clk 0:00:01]}  Bd4 {[%clk 0:00:03]} 42. axb5 {[%clk 0:00:01]}  Nxf2 {[%clk 0:00:03]} 43. Bxc4 {[%clk 0:00:01]}  Nh3+ {[%clk 0:00:02]} 44. Kh1 {[%clk 0:00:02]}  Nf2+ {[%clk 0:00:02]} 45. Rxf2 {[%clk 0:00:02]}  Rxf2 {[%clk 0:00:01]} 46. Rd7 {[%clk 0:00:02]}  Rd2 {[%clk 0:00:02]} 47. Be2 {[%clk 0:00:02]}  Rxe2 {[%clk 0:00:01]} 48. Rxd4 {[%clk 0:00:02]}  Kh5 {[%clk 0:00:02]} 49. Rb4 {[%clk 0:00:02]}  Re1+ {[%clk 0:00:02]} 50. Kg2 {[%clk 0:00:02]}  Re2+ {[%clk 0:00:02]} 51. Kg1 {[%clk 0:00:03]}  Re1+ {[%clk 0:00:02]} 52. Kf2 {[%clk 0:00:03]}  Re7 {[%clk 0:00:02]} 53. b6 {[%clk 0:00:03]}  Rb7 {[%clk 0:00:03]} 54. Ke3 {[%clk 0:00:03]}  g5 {[%clk 0:00:03]} 55. Ke4 {[%clk 0:00:04]}  Rxb6 {[%clk 0:00:04]} 56. Rxb6 {[%clk 0:00:01]} 1/2-1/2


[Site "https://www.chess.com"]

[Event "Titled Tuesday Blitz September 13 Late 2022"]
[White "Zhigalko, Sergei"]
[Black "Tayar, Jonathan"]
[WhiteFideId "13502956"]
[BlackFideId "2606534"]
[WhiteElo "2662"]
[BlackElo "2413"]
[Result "1-0"]
[Round "08"]
[TimeControl "180+1"]
[Date "2022.09.13"]
[WhiteClock "0:01:09"]
[BlackClock "0:00:07"]

1. e4 {[%clk 0:03:00]}  c5 {[%clk 0:02:58]} 2. Nf3 {[%clk 0:03:01]}  d6 {[%clk 0:02:58]} 3. d4 {[%clk 0:03:00]}  Nf6 {[%clk 0:02:58]} 4. Nc3 {[%clk 0:03:00]}  cxd4 {[%clk 0:02:59]} 5. Qxd4 {[%clk 0:03:01]}  a6 {[%clk 0:02:59]} 6. Bc4 {[%clk 0:03:01]}  e6 {[%clk 0:02:53]} 7. Bf4 {[%clk 0:03:01]}  Nc6 {[%clk 0:02:45]} 8. Qd3 {[%clk 0:03:00]}  e5 {[%clk 0:02:22]} 9. Bg5 {[%clk 0:03:00]}  Be6 {[%clk 0:02:22]} 10. O-O-O {[%clk 0:02:56]}  Rc8 {[%clk 0:02:19]} 11. Bb3 {[%clk 0:02:56]}  h6 {[%clk 0:02:14]} 12. Bxf6 {[%clk 0:02:52]}  Qxf6 {[%clk 0:02:10]} 13. Kb1 {[%clk 0:02:50]}  Qd8 {[%clk 0:02:06]} 14. Nd5 {[%clk 0:02:48]}  Be7 {[%clk 0:01:49]} 15. h3 {[%clk 0:02:37]}  Bxd5 {[%clk 0:01:41]} 16. Qxd5 {[%clk 0:02:34]}  O-O {[%clk 0:01:38]} 17. g4 {[%clk 0:02:29]}  Qa5 {[%clk 0:01:34]} 18. h4 {[%clk 0:02:01]}  Qxd5 {[%clk 0:01:30]} 19. Bxd5 {[%clk 0:01:57]}  g6 {[%clk 0:01:23]} 20. c3 {[%clk 0:01:51]}  Kg7 {[%clk 0:01:22]} 21. a3 {[%clk 0:01:49]}  Rc7 {[%clk 0:01:15]} 22. Nd2 {[%clk 0:01:46]}  Nd8 {[%clk 0:01:08]} 23. Nf1 {[%clk 0:01:43]}  Ne6 {[%clk 0:01:07]} 24. Ne3 {[%clk 0:01:43]}  Nf4 {[%clk 0:01:05]} 25. Bb3 {[%clk 0:01:30]}  Rc5 {[%clk 0:00:46]} 26. f3 {[%clk 0:01:27]}  Rb8 {[%clk 0:00:36]} 27. Nd5 {[%clk 0:01:20]}  Nxd5 {[%clk 0:00:35]} 28. Rxd5 {[%clk 0:01:21]}  b5 {[%clk 0:00:28]} 29. Kc2 {[%clk 0:01:18]}  a5 {[%clk 0:00:26]} 30. Kd3 {[%clk 0:01:18]}  b4 {[%clk 0:00:23]} 31. cxb4 {[%clk 0:01:13]}  axb4 {[%clk 0:00:22]} 32. Rxc5 {[%clk 0:01:09]}  dxc5 {[%clk 0:00:22]} 33. a4 {[%clk 0:01:10]}  Rd8+ {[%clk 0:00:16]} 34. Bd5 {[%clk 0:01:10]}  Rd6 {[%clk 0:00:10]} 35. Kc4 {[%clk 0:01:09]}  Rc6 {[%clk 0:00:07]} 36. Bxc6 {[%clk 0:01:09]} 1-0


[Site "https://www.chess.com"]

[Event "Titled Tuesday Blitz September 13 Late 2022"]
[White "Barbosa, Evandro Amorim"]
[Black "Ceres, Dragos"]
[WhiteFideId "2115824"]
[BlackFideId "13905864"]
[WhiteElo "2454"]
[BlackElo "2150"]
[Result "1/2-1/2"]
[Round "09"]
[TimeControl "180+1"]
[Date "2022.09.13"]
[WhiteClock "0:00:14"]
[BlackClock "0:00:21"]

1. e4 {[%clk 0:02:56]}  e5 {[%clk 0:02:54]} 2. Nf3 {[%clk 0:02:54]}  Nc6 {[%clk 0:02:53]} 3. Bb5 {[%clk 0:02:50]}  a6 {[%clk 0:02:52]} 4. Ba4 {[%clk 0:02:51]}  g6 {[%clk 0:02:51]} 5. c3 {[%clk 0:02:49]}  Bg7 {[%clk 0:02:48]} 6. d4 {[%clk 0:02:49]}  exd4 {[%clk 0:02:49]} 7. cxd4 {[%clk 0:02:49]}  b5 {[%clk 0:02:49]} 8. Bb3 {[%clk 0:02:49]}  Na5 {[%clk 0:02:48]} 9. Bd2 {[%clk 0:02:36]}  Nxb3 {[%clk 0:02:44]} 10. Qxb3 {[%clk 0:02:37]}  Ne7 {[%clk 0:02:39]} 11. d5 {[%clk 0:02:36]}  d6 {[%clk 0:02:25]} 12. Bc3 {[%clk 0:02:35]}  f6 {[%clk 0:02:25]} 13. O-O {[%clk 0:02:34]}  O-O {[%clk 0:02:23]} 14. Nbd2 {[%clk 0:02:34]}  Kh8 {[%clk 0:02:14]} 15. a4 {[%clk 0:02:28]}  Rb8 {[%clk 0:02:13]} 16. axb5 {[%clk 0:02:27]}  axb5 {[%clk 0:02:14]} 17. Ba5 {[%clk 0:02:17]}  Qd7 {[%clk 0:02:03]} 18. Nd4 {[%clk 0:02:16]}  c5 {[%clk 0:01:18]} 19. Ne6 {[%clk 0:02:15]}  Rg8 {[%clk 0:01:15]} 20. Nxg7 {[%clk 0:02:08]}  Kxg7 {[%clk 0:01:16]} 21. Bc3 {[%clk 0:01:54]}  b4 {[%clk 0:01:13]} 22. Nc4 {[%clk 0:01:55]}  Bb7 {[%clk 0:01:00]} 23. Bd2 {[%clk 0:01:45]}  Nxd5 {[%clk 0:00:30]} 24. exd5 {[%clk 0:01:44]}  Bxd5 {[%clk 0:00:31]} 25. Qd3 {[%clk 0:01:43]}  Qe6 {[%clk 0:00:31]} 26. Ra7+ {[%clk 0:01:37]}  Kh8 {[%clk 0:00:30]} 27. Re1 {[%clk 0:00:54]}  Bxc4 {[%clk 0:00:18]} 28. Rxe6 {[%clk 0:00:21]}  Bxd3 {[%clk 0:00:18]} 29. Ree7 {[%clk 0:00:21]}  g5 {[%clk 0:00:18]} 30. h4 {[%clk 0:00:19]}  h6 {[%clk 0:00:16]} 31. hxg5 {[%clk 0:00:18]}  hxg5 {[%clk 0:00:17]} 32. f4 {[%clk 0:00:12]}  Rge8 {[%clk 0:00:16]} 33. fxg5 {[%clk 0:00:12]}  Rxe7 {[%clk 0:00:15]} 34. Rxe7 {[%clk 0:00:13]}  fxg5 {[%clk 0:00:15]} 35. Bxg5 {[%clk 0:00:13]}  Kg8 {[%clk 0:00:15]} 36. Bf6 {[%clk 0:00:13]}  c4 {[%clk 0:00:14]} 37. Re3 {[%clk 0:00:10]}  Kf7 {[%clk 0:00:13]} 38. Bd4 {[%clk 0:00:09]}  Re8 {[%clk 0:00:13]} 39. Rxe8 {[%clk 0:00:07]}  Kxe8 {[%clk 0:00:14]} 40. Kf2 {[%clk 0:00:07]}  Kf7 {[%clk 0:00:15]} 41. g3 {[%clk 0:00:07]}  Kg6 {[%clk 0:00:15]} 42. Ke3 {[%clk 0:00:07]}  Kf5 {[%clk 0:00:16]} 43. Bb6 {[%clk 0:00:07]}  d5 {[%clk 0:00:16]} 44. Bd4 {[%clk 0:00:06]}  Be4 {[%clk 0:00:15]} 45. Bc5 {[%clk 0:00:07]}  c3 {[%clk 0:00:14]} 46. bxc3 {[%clk 0:00:07]}  bxc3 {[%clk 0:00:15]} 47. Bd4 {[%clk 0:00:06]}  c2 {[%clk 0:00:15]} 48. Kd2 {[%clk 0:00:07]}  Kg4 {[%clk 0:00:16]} 49. Be5 {[%clk 0:00:07]}  Kf3 {[%clk 0:00:16]} 50. Bf4 {[%clk 0:00:07]}  Bf5 {[%clk 0:00:16]} 51. Kc1 {[%clk 0:00:07]}  Ke2 {[%clk 0:00:16]} 52. Bd2 {[%clk 0:00:07]}  d4 {[%clk 0:00:16]} 53. Bf4 {[%clk 0:00:08]}  d3 {[%clk 0:00:17]} 54. Bd2 {[%clk 0:00:09]}  Be4 {[%clk 0:00:17]} 55. Bf4 {[%clk 0:00:09]}  Kf3 {[%clk 0:00:17]} 56. Bd2 {[%clk 0:00:08]}  Kxg3 {[%clk 0:00:16]} 57. Bc3 {[%clk 0:00:09]}  Kf3 {[%clk 0:00:16]} 58. Bd2 {[%clk 0:00:10]}  Ke2 {[%clk 0:00:17]} 59. Bc3 {[%clk 0:00:10]}  Bd5 {[%clk 0:00:18]} 60. Bd2 {[%clk 0:00:10]}  Bc4 {[%clk 0:00:19]} 61. Bc3 {[%clk 0:00:11]}  Kf3 {[%clk 0:00:17]} 62. Bd2 {[%clk 0:00:11]}  Ke4 {[%clk 0:00:16]} 63. Bc3 {[%clk 0:00:11]}  Bd5 {[%clk 0:00:17]} 64. Bd2 {[%clk 0:00:11]}  Kd4 {[%clk 0:00:18]} 65. Bh6 {[%clk 0:00:11]}  Kc3 {[%clk 0:00:19]} 66. Bd2+ {[%clk 0:00:12]}  Kb3 {[%clk 0:00:19]} 67. Bh6 {[%clk 0:00:12]}  Kc3 {[%clk 0:00:20]} 68. Bd2+ {[%clk 0:00:13]}  Kb3 {[%clk 0:00:20]} 69. Bh6 {[%clk 0:00:14]}  Kc3 {[%clk 0:00:21]} 1/2-1/2


[Site "https://www.chess.com"]

[Event "Titled Tuesday Blitz September 13 Late 2022"]
[White "Bortnyk, Olexandr"]
[Black "Andreikin, Dmitry"]
[WhiteFideId "14120828"]
[BlackFideId "4158814"]
[WhiteElo "2723"]
[BlackElo "2736"]
[Result "1-0"]
[Round "09"]
[TimeControl "180+1"]
[Date "2022.09.13"]
[WhiteClock "0:00:09"]
[BlackClock "0:00:07"]

1. e4 {[%clk 0:03:00]}  e6 {[%clk 0:03:00]} 2. d4 {[%clk 0:03:00]}  d5 {[%clk 0:03:00]} 3. Nc3 {[%clk 0:03:01]}  Bb4 {[%clk 0:03:00]} 4. Qd3 {[%clk 0:03:00]}  dxe4 {[%clk 0:02:58]} 5. Qxe4 {[%clk 0:03:01]}  Nf6 {[%clk 0:02:58]} 6. Qh4 {[%clk 0:03:01]}  Qd5 {[%clk 0:02:59]} 7. Ne2 {[%clk 0:02:48]}  Qe4 {[%clk 0:02:51]} 8. Qxe4 {[%clk 0:02:02]}  Nxe4 {[%clk 0:02:52]} 9. Bf4 {[%clk 0:02:03]}  c6 {[%clk 0:02:16]} 10. a3 {[%clk 0:01:59]}  Ba5 {[%clk 0:02:14]} 11. b4 {[%clk 0:01:52]}  Nxc3 {[%clk 0:02:14]} 12. bxa5 {[%clk 0:01:38]}  Nd5 {[%clk 0:02:14]} 13. Bd6 {[%clk 0:01:36]}  b5 {[%clk 0:02:14]} 14. axb6 {[%clk 0:01:33]}  axb6 {[%clk 0:02:09]} 15. c4 {[%clk 0:01:32]}  Ne7 {[%clk 0:02:06]} 16. h4 {[%clk 0:00:55]}  Nd7 {[%clk 0:01:56]} 17. g3 {[%clk 0:00:48]}  Ba6 {[%clk 0:01:51]} 18. Rc1 {[%clk 0:00:46]}  Nf5 {[%clk 0:01:49]} 19. Bf4 {[%clk 0:00:45]}  Bb7 {[%clk 0:01:46]} 20. Bg2 {[%clk 0:00:42]}  Rxa3 {[%clk 0:01:41]} 21. g4 {[%clk 0:00:39]}  Ne7 {[%clk 0:01:29]} 22. Bd6 {[%clk 0:00:39]}  Ra4 {[%clk 0:01:18]} 23. h5 {[%clk 0:00:36]}  Nc8 {[%clk 0:01:13]} 24. Bg3 {[%clk 0:00:36]}  O-O {[%clk 0:01:02]} 25. h6 {[%clk 0:00:37]}  g6 {[%clk 0:00:54]} 26. O-O {[%clk 0:00:37]}  Re8 {[%clk 0:00:52]} 27. Rfe1 {[%clk 0:00:33]}  Ne7 {[%clk 0:00:43]} 28. Bf3 {[%clk 0:00:26]}  Ba6 {[%clk 0:00:39]} 29. Nc3 {[%clk 0:00:21]}  Ra5 {[%clk 0:00:26]} 30. Ne4 {[%clk 0:00:19]}  f5 {[%clk 0:00:19]} 31. Nd6 {[%clk 0:00:17]}  Rf8 {[%clk 0:00:19]} 32. Bh4 {[%clk 0:00:16]}  g5 {[%clk 0:00:17]} 33. Rxe6 {[%clk 0:00:14]}  fxg4 {[%clk 0:00:14]} 34. Rxe7 {[%clk 0:00:13]}  Rxf3 {[%clk 0:00:08]} 35. Rg7+ {[%clk 0:00:11]}  Kf8 {[%clk 0:00:08]} 36. Bxg5 {[%clk 0:00:10]}  g3 {[%clk 0:00:07]} 37. Be7# {[%clk 0:00:09]} 1-0


[Site "https://www.chess.com"]

[Event "Titled Tuesday Blitz September 13 Late 2022"]
[White "Cardoso Cardoso, Jose Gabriel"]
[Black "Maltsevskaya, Aleksandra"]
[WhiteFideId "4430492"]
[BlackFideId "24174041"]
[WhiteElo "2485"]
[BlackElo "2243"]
[Result "1-0"]
[Round "09"]
[TimeControl "180+1"]
[Date "2022.09.13"]
[WhiteClock "0:00:34"]
[BlackClock "0:01:02"]

1. e4 {[%clk 0:03:00]}  c5 {[%clk 0:02:59]} 2. Nf3 {[%clk 0:03:00]}  e6 {[%clk 0:03:00]} 3. Nc3 {[%clk 0:03:00]}  Nc6 {[%clk 0:02:59]} 4. d4 {[%clk 0:03:00]}  cxd4 {[%clk 0:03:00]} 5. Nxd4 {[%clk 0:03:01]}  Nf6 {[%clk 0:03:00]} 6. Qd3 {[%clk 0:02:58]}  Bc5 {[%clk 0:02:59]} 7. Nb3 {[%clk 0:02:29]}  Bb6 {[%clk 0:02:56]} 8. Qg3 {[%clk 0:02:19]}  O-O {[%clk 0:02:37]} 9. Bg5 {[%clk 0:02:10]}  Bc7 {[%clk 0:02:27]} 10. f4 {[%clk 0:01:56]}  d6 {[%clk 0:02:07]} 11. O-O-O {[%clk 0:01:52]}  Kh8 {[%clk 0:02:04]} 12. e5 {[%clk 0:01:50]}  Nh5 {[%clk 0:02:00]} 13. Bxd8 {[%clk 0:01:28]}  Nxg3 {[%clk 0:01:59]} 14. Bxc7 {[%clk 0:01:29]}  Nxh1 {[%clk 0:01:59]} 15. Bxd6 {[%clk 0:01:27]}  Rd8 {[%clk 0:01:59]} 16. Ne4 {[%clk 0:01:25]}  b6 {[%clk 0:01:48]} 17. Bd3 {[%clk 0:01:12]}  Bb7 {[%clk 0:01:45]} 18. Rxh1 {[%clk 0:01:12]}  Rac8 {[%clk 0:01:45]} 19. Kb1 {[%clk 0:01:05]}  a5 {[%clk 0:01:44]} 20. a4 {[%clk 0:01:05]}  Nb4 {[%clk 0:01:40]} 21. Bxb4 {[%clk 0:01:04]}  axb4 {[%clk 0:01:41]} 22. Nd6 {[%clk 0:01:03]}  Rc7 {[%clk 0:01:41]} 23. Rg1 {[%clk 0:00:58]}  f5 {[%clk 0:01:40]} 24. Nd4 {[%clk 0:00:55]}  Bd5 {[%clk 0:01:39]} 25. h3 {[%clk 0:00:51]}  g6 {[%clk 0:01:38]} 26. g4 {[%clk 0:00:51]}  Ra8 {[%clk 0:01:32]} 27. Bb5 {[%clk 0:00:50]}  Rf8 {[%clk 0:01:17]} 28. g5 {[%clk 0:00:47]}  Kg7 {[%clk 0:01:16]} 29. Kc1 {[%clk 0:00:40]}  Kg8 {[%clk 0:01:15]} 30. Ne8 {[%clk 0:00:38]}  Rc5 {[%clk 0:01:05]} 31. Nf6+ {[%clk 0:00:37]}  Kg7 {[%clk 0:01:05]} 32. Nd7 {[%clk 0:00:38]}  Rfc8 {[%clk 0:01:04]} 33. Nxc5 {[%clk 0:00:38]}  bxc5 {[%clk 0:01:05]} 34. Ne2 {[%clk 0:00:36]}  c4 {[%clk 0:01:03]} 35. Nd4 {[%clk 0:00:35]}  h6 {[%clk 0:01:02]} 36. gxh6+ {[%clk 0:00:34]}  Kxh6 {[%clk 0:01:02]} 37. Bd7 {[%clk 0:00:34]} 1-0


[Site "https://www.chess.com"]

[Event "Titled Tuesday Blitz September 13 Late 2022"]
[White "Colivet Gamboa, Julio Cesar"]
[Black "Besedes, Danilo"]
[WhiteFideId "3949583"]
[BlackFideId "946796"]
[WhiteElo "1744"]
[BlackElo "2352"]
[Result "0-1"]
[Round "09"]
[TimeControl "180+1"]
[Date "2022.09.13"]
[WhiteClock "0:00:01"]
[BlackClock "0:01:00"]

1. c4 {[%clk 0:03:00]}  Nf6 {[%clk 0:02:59]} 2. Nc3 {[%clk 0:03:01]}  e6 {[%clk 0:02:59]} 3. e4 {[%clk 0:03:01]}  Nc6 {[%clk 0:02:51]} 4. g3 {[%clk 0:03:01]}  Bc5 {[%clk 0:02:50]} 5. Bg2 {[%clk 0:03:00]}  h5 {[%clk 0:02:50]} 6. h3 {[%clk 0:02:53]}  a6 {[%clk 0:02:47]} 7. Nge2 {[%clk 0:02:52]}  e5 {[%clk 0:02:46]} 8. d3 {[%clk 0:02:50]}  d6 {[%clk 0:02:46]} 9. Bg5 {[%clk 0:02:48]}  Be6 {[%clk 0:02:43]} 10. a3 {[%clk 0:02:39]}  h4 {[%clk 0:02:37]} 11. Bxh4 {[%clk 0:02:35]}  Rxh4 {[%clk 0:02:37]} 12. gxh4 {[%clk 0:02:34]}  Nh5 {[%clk 0:02:37]} 13. Ng3 {[%clk 0:02:21]}  Qxh4 {[%clk 0:02:30]} 14. Qxh5 {[%clk 0:02:17]}  Qf4 {[%clk 0:02:17]} 15. Qf3 {[%clk 0:02:00]}  Nd4 {[%clk 0:02:10]} 16. Qxf4 {[%clk 0:01:25]}  exf4 {[%clk 0:02:11]} 17. Nge2 {[%clk 0:01:14]}  f3 {[%clk 0:02:10]} 18. Nxd4 {[%clk 0:01:03]}  fxg2 {[%clk 0:02:10]} 19. Rg1 {[%clk 0:01:01]}  Bxd4 {[%clk 0:02:10]} 20. Rxg2 {[%clk 0:01:01]}  c6 {[%clk 0:02:05]} 21. f4 {[%clk 0:00:55]}  Ke7 {[%clk 0:01:58]} 22. f5 {[%clk 0:00:54]}  Bd7 {[%clk 0:01:57]} 23. Kd2 {[%clk 0:00:50]}  Rh8 {[%clk 0:01:57]} 24. Rh1 {[%clk 0:00:48]}  Rh4 {[%clk 0:01:46]} 25. b3 {[%clk 0:00:44]}  b5 {[%clk 0:01:41]} 26. Ne2 {[%clk 0:00:43]}  Be5 {[%clk 0:01:36]} 27. d4 {[%clk 0:00:39]}  Bf6 {[%clk 0:01:34]} 28. Kd3 {[%clk 0:00:37]}  c5 {[%clk 0:01:31]} 29. dxc5 {[%clk 0:00:17]}  dxc5 {[%clk 0:01:30]} 30. Rf2 {[%clk 0:00:17]}  a5 {[%clk 0:01:20]} 31. Nf4 {[%clk 0:00:16]}  Be5 {[%clk 0:01:16]} 32. Nd5+ {[%clk 0:00:15]}  Kd6 {[%clk 0:01:15]} 33. f6 {[%clk 0:00:15]}  g5 {[%clk 0:01:13]} 34. Rg2 {[%clk 0:00:11]}  g4 {[%clk 0:01:12]} 35. Rhg1 {[%clk 0:00:02]}  gxh3 {[%clk 0:01:12]} 36. Rg7 {[%clk 0:00:03]}  h2 {[%clk 0:01:12]} 37. Rh1 {[%clk 0:00:03]}  Bg4 {[%clk 0:01:04]} 38. Ne3 {[%clk 0:00:01]}  Bf3 {[%clk 0:01:00]} 39. Nf5+ {[%clk 0:00:01]}  Ke6 {[%clk 0:01:00]} 0-1


[Site "https://www.chess.com"]

[Event "Titled Tuesday Blitz September 13 Late 2022"]
[White "Domalchuk-Jonasson, Aleksandr"]
[Black "Lin, Dachey"]
[WhiteFideId "14142805"]
[BlackFideId "2029650"]
[WhiteElo "1991"]
[BlackElo "2313"]
[Result "1-0"]
[Round "09"]
[TimeControl "180+1"]
[Date "2022.09.13"]
[WhiteClock "0:00:02"]
[BlackClock "0:00:07"]

1. d4 {[%clk 0:02:56]}  g6 {[%clk 0:03:00]} 2. e4 {[%clk 0:02:55]}  Bg7 {[%clk 0:03:00]} 3. Nf3 {[%clk 0:02:56]}  c6 {[%clk 0:03:01]} 4. Bd3 {[%clk 0:02:56]}  d5 {[%clk 0:03:01]} 5. e5 {[%clk 0:02:56]}  Bg4 {[%clk 0:03:02]} 6. Nbd2 {[%clk 0:02:56]}  e6 {[%clk 0:03:02]} 7. h3 {[%clk 0:02:55]}  Bxf3 {[%clk 0:03:02]} 8. Nxf3 {[%clk 0:02:56]}  Nd7 {[%clk 0:03:02]} 9. O-O {[%clk 0:02:56]}  Ne7 {[%clk 0:03:02]} 10. b4 {[%clk 0:02:53]}  O-O {[%clk 0:02:57]} 11. c3 {[%clk 0:02:45]}  b6 {[%clk 0:02:52]} 12. Qe2 {[%clk 0:02:22]}  Qc7 {[%clk 0:02:50]} 13. Bg5 {[%clk 0:02:21]}  Rfe8 {[%clk 0:02:50]} 14. a4 {[%clk 0:02:00]}  a5 {[%clk 0:02:39]} 15. Rfc1 {[%clk 0:01:53]}  h6 {[%clk 0:02:25]} 16. Bd2 {[%clk 0:01:52]}  Ra7 {[%clk 0:02:05]} 17. c4 {[%clk 0:01:49]}  axb4 {[%clk 0:02:04]} 18. Bxb4 {[%clk 0:01:48]}  c5 {[%clk 0:02:02]} 19. cxd5 {[%clk 0:01:47]}  Nxd5 {[%clk 0:02:02]} 20. Bd2 {[%clk 0:01:43]}  Rea8 {[%clk 0:01:54]} 21. Bb5 {[%clk 0:01:40]}  Qd8 {[%clk 0:01:54]} 22. Bc6 {[%clk 0:01:21]}  Rc8 {[%clk 0:01:47]} 23. Bxd5 {[%clk 0:01:13]}  exd5 {[%clk 0:01:48]} 24. e6 {[%clk 0:01:14]}  Nf8 {[%clk 0:01:20]} 25. exf7+ {[%clk 0:01:14]}  Rxf7 {[%clk 0:01:21]} 26. a5 {[%clk 0:01:08]}  cxd4 {[%clk 0:01:18]} 27. Rxc8 {[%clk 0:00:51]}  Qxc8 {[%clk 0:01:18]} 28. Qd3 {[%clk 0:00:51]}  bxa5 {[%clk 0:01:17]} 29. Rxa5 {[%clk 0:00:51]}  Qc4 {[%clk 0:01:17]} 30. Qb1 {[%clk 0:00:39]}  d3 {[%clk 0:01:16]} 31. Ne1 {[%clk 0:00:30]}  Bc3 {[%clk 0:01:03]} 32. Ra2 {[%clk 0:00:19]}  d4 {[%clk 0:00:40]} 33. Nxd3 {[%clk 0:00:17]}  Rb7 {[%clk 0:00:40]} 34. Qxb7 {[%clk 0:00:13]}  Qxa2 {[%clk 0:00:41]} 35. Bxh6 {[%clk 0:00:13]}  Ne6 {[%clk 0:00:32]} 36. Ne5 {[%clk 0:00:09]}  Kh8 {[%clk 0:00:20]} 37. Qf7 {[%clk 0:00:03]}  Qb1+ {[%clk 0:00:19]} 38. Kh2 {[%clk 0:00:03]}  Qb8 {[%clk 0:00:19]} 39. f4 {[%clk 0:00:02]}  Nxf4 {[%clk 0:00:07]} 40. Qg7# {[%clk 0:00:02]} 1-0


[Site "https://www.chess.com"]

[Event "Titled Tuesday Blitz September 13 Late 2022"]
[White "Fishbein, Alexander"]
[Black "Hansen, Eric"]
[WhiteFideId "2000377"]
[BlackFideId "2606771"]
[WhiteElo "2410"]
[BlackElo "2568"]
[Result "0-1"]
[Round "09"]
[TimeControl "180+1"]
[Date "2022.09.13"]
[WhiteClock "0:00:04"]
[BlackClock "0:01:12"]

1. c4 {[%clk 0:03:00]}  e5 {[%clk 0:03:00]} 2. Nc3 {[%clk 0:02:58]}  Nc6 {[%clk 0:02:59]} 3. Nf3 {[%clk 0:02:58]}  Bb4 {[%clk 0:02:58]} 4. Nd5 {[%clk 0:02:57]}  Be7 {[%clk 0:02:58]} 5. d4 {[%clk 0:02:54]}  d6 {[%clk 0:02:58]} 6. e4 {[%clk 0:02:51]}  Nf6 {[%clk 0:02:58]} 7. Nxf6+ {[%clk 0:02:50]}  Bxf6 {[%clk 0:02:58]} 8. d5 {[%clk 0:02:50]}  Nb8 {[%clk 0:02:47]} 9. Be3 {[%clk 0:02:44]}  a5 {[%clk 0:02:47]} 10. Bd3 {[%clk 0:02:40]}  O-O {[%clk 0:02:47]} 11. h3 {[%clk 0:02:35]}  Na6 {[%clk 0:02:46]} 12. Qd2 {[%clk 0:02:33]}  Nc5 {[%clk 0:02:44]} 13. Bc2 {[%clk 0:02:32]}  b6 {[%clk 0:02:45]} 14. g4 {[%clk 0:02:26]}  Be7 {[%clk 0:02:42]} 15. O-O {[%clk 0:02:19]}  h5 {[%clk 0:02:39]} 16. gxh5 {[%clk 0:02:10]}  Bxh3 {[%clk 0:02:37]} 17. Rfe1 {[%clk 0:02:09]}  Bg4 {[%clk 0:02:26]} 18. Nh2 {[%clk 0:02:03]}  Bxh5 {[%clk 0:02:26]} 19. f4 {[%clk 0:01:59]}  Bh4 {[%clk 0:02:21]} 20. Rf1 {[%clk 0:01:55]}  exf4 {[%clk 0:02:22]} 21. Bxf4 {[%clk 0:01:53]}  Re8 {[%clk 0:02:20]} 22. Qg2 {[%clk 0:01:37]}  Qf6 {[%clk 0:02:18]} 23. e5 {[%clk 0:01:22]}  Rxe5 {[%clk 0:02:11]} 24. Bxe5 {[%clk 0:01:19]}  Qxe5 {[%clk 0:02:11]} 25. Nf3 {[%clk 0:01:13]}  Qe3+ {[%clk 0:02:06]} 26. Kh1 {[%clk 0:01:11]}  Bf6 {[%clk 0:02:05]} 27. Qh3 {[%clk 0:00:55]}  Qh6 {[%clk 0:01:59]} 28. Bf5 {[%clk 0:00:32]}  Re8 {[%clk 0:01:56]} 29. Kg2 {[%clk 0:00:20]}  Re2+ {[%clk 0:01:53]} 30. Rf2 {[%clk 0:00:19]}  Rxf2+ {[%clk 0:01:33]} 31. Kxf2 {[%clk 0:00:19]}  g6 {[%clk 0:01:33]} 32. Bg4 {[%clk 0:00:17]}  Nd3+ {[%clk 0:01:29]} 33. Kg1 {[%clk 0:00:04]}  Qe3+ {[%clk 0:01:28]} 34. Kh2 {[%clk 0:00:04]}  Nf2 {[%clk 0:01:12]} 0-1


[Site "https://www.chess.com"]